bitfinex/quotes_BTCUSD_20220109
["timestamp","ask_amount","ask_price","bid_price","bid_amount"]
[1641714017611,0.00098975,41847.0,41846.0,0.98880766]
[1641714017811,0.00098975,41847.0,41846.0,1.03880766]
[1641714018012,0.00098975,41847.0,41846.0,1.16992766]
[1641714018210,0.00098975,41847.0,41846.0,1.23192766]
[1641714019410,0.00098975,41847.0,41846.0,1.16992766]
[1641714020211,0.00098975,41847.0,41846.0,1.25692766]
[1641714021062,0.00098001,41847.0,41846.0,1.10692766]
[1641714021263,0.00098001,41847.0,41846.0,1.07580766]
[1641714021562,0.00098001,41847.0,41846.0,0.64623275]
[1641714022162,0.00098001,41847.0,41846.0,0.92513907]
[1641714022758,0.00098001,41847.0,41846.0,0.98490062]
[1641714022961,0.00098001,41847.0,41846.0,0.92513907]
[1641714023361,0.00098001,41847.0,41846.0,0.64623275]
[1641714024261,0.00098001,41847.0,41846.0,0.65123275]
[1641714025516,0.00098001,41847.0,41846.0,0.64623275]
[1641714025714,0.00140695,41847.0,41846.0,0.64623275]
[1641714025916,0.00098023,41847.0,41846.0,0.64623275]
[1641714026315,0.00098023,41847.0,41846.0,0.64723275]
[1641714026516,0.00140717,41847.0,41846.0,0.64723275]
[1641714026715,0.00098023,41847.0,41846.0,0.64723275]
[1641714027515,0.00098023,41847.0,41846.0,0.7059945]
[1641714027716,0.00098023,41847.0,41846.0,0.97492926]
[1641714027915,0.00098023,41847.0,41846.0,0.7059945]
[1641714028157,0.00098023,41847.0,41846.0,0.7069945]
[1641714029258,0.00098023,41847.0,41846.0,0.97447097]
[1641714029460,0.00098023,41847.0,41846.0,0.97347097]
[1641714030357,0.00098023,41847.0,41846.0,1.02647097]
[1641714031559,0.00098023,41847.0,41846.0,0.97347097]
[1641714032013,0.00140717,41847.0,41846.0,0.97347097]
[1641714032212,0.00098023,41847.0,41846.0,1.00347097]
[1641714033413,0.00098023,41847.0,41846.0,0.97347097]
[1641714033612,0.00098023,41847.0,41846.0,0.71308742]
[1641714034313,0.00098023,41847.0,41846.0,0.71808742]
[1641714034713,0.00098023,41847.0,41846.0,0.98526366]
[1641714035661,0.00098023,41847.0,41846.0,0.98026366]
[1641714036357,0.00098023,41847.0,41846.0,0.98726366]
[1641714037561,0.00098023,41847.0,41846.0,0.98026366]
[1641714038363,0.00098023,41847.0,41846.0,0.98626366]
[1641714039509,0.00098023,41847.0,41846.0,0.98026366]
[1641714040313,0.00098023,41847.0,41846.0,0.98526366]
[1641714041614,0.00098023,41847.0,41846.0,0.98026366]
[1641714042211,0.00098023,41847.0,41846.0,1.07226366]
[1641714043458,0.00098023,41847.0,41846.0,0.98026366]
[1641714044259,0.00098023,41847.0,41846.0,1.01926366]
[1641714045561,0.00098023,41847.0,41846.0,0.98026366]
[1641714046160,0.00098023,41847.0,41846.0,0.71149299]
[1641714046360,0.00098023,41847.0,41846.0,0.74149299]
[1641714047632,0.00098023,41847.0,41846.0,0.71149299]
[1641714048232,0.00098023,41847.0,41846.0,0.74349299]
[1641714048433,0.00140717,41847.0,41846.0,1.01092646]
[1641714048633,0.00098023,41847.0,41846.0,1.0121998]
[1641714049633,0.00098023,41847.0,41846.0,0.9801998]
[1641714050236,0.00098023,41847.0,41846.0,1.0221998]
[1641714051457,0.00098023,41847.0,41846.0,0.9801998]
[1641714051857,0.00098023,41847.0,41846.0,0.71276633]
[1641714052358,0.00098023,41847.0,41846.0,0.73949299]
[1641714053658,0.00098023,41847.0,41846.0,0.71149299]
[1641714054259,0.00098023,41847.0,41846.0,0.72249299]
[1641714054911,0.41119663,41854.0,41847.0,0.384555]
[1641714055113,0.41119663,41854.0,41847.0,0.059761]
[1641714055313,0.41119663,41854.0,41847.0,0.17928299]
[1641714055713,0.059761,41851.0,41847.0,0.17928299]
[1641714056314,0.059761,41851.0,41847.0,0.18728299]
[1641714057616,0.059761,41851.0,41848.0,0.11952114]
[1641714057917,0.059761,41851.0,41847.0,0.059761]
[1641714058379,0.059761,41851.0,41848.0,0.006]
[1641714059679,0.059761,41851.0,41847.0,0.17928501]
[1641714060279,0.059761,41851.0,41848.0,0.05976]
[1641714060480,0.00042566,41852.0,41848.0,0.05976]
[1641714060681,0.00042566,41852.0,41849.0,0.11951589]
[1641714061583,0.06018466,41852.0,41849.0,0.11951589]
[1641714061786,0.06018467,41852.0,41849.0,0.11951589]
[1641714062211,0.06018467,41852.0,41849.0,0.12351589]
[1641714062712,0.00042567,41852.0,41850.0,0.05975671]
[1641714063612,0.00085156,41852.0,41850.0,0.05975671]
[1641714064214,0.00042589,41852.0,41850.0,0.06375671]
[1641714065667,0.00042589,41852.0,41851.0,0.77817424]
[1641714065868,0.00042589,41852.0,41851.0,0.92817424]
[1641714066067,0.00042589,41852.0,41851.0,1.26272924]
[1641714066266,0.00042589,41852.0,41851.0,0.86739142]
[1641714066670,0.0004259,41852.0,41851.0,0.450355]
[1641714066870,0.0004259,41852.0,41851.0,0.0658]
[1641714067470,0.0004259,41852.0,41851.0,0.0478]
[1641714067669,0.00042589,41852.0,41851.0,0.0478]
[1641714067871,0.00042589,41852.0,41851.0,0.31863965]
[1641714068172,0.00042589,41852.0,41850.0,0.05975671]
[1641714068371,0.00042589,41852.0,41851.0,0.014]
[1641714069617,0.00042589,41852.0,41849.0,0.33022483]
[1641714070020,0.00042589,41852.0,41850.0,0.05975799]
[1641714070220,0.142258,41851.0,41850.0,0.05975799]
[1641714070422,0.142258,41851.0,41850.0,0.32966926]
[1641714072322,0.142258,41851.0,41850.0,0.34166926]
[1641714072922,0.142258,41851.0,41850.0,0.07175799]
[1641714073561,0.142258,41851.0,41850.0,0.05975799]
[1641714073972,0.142258,41851.0,41846.0,0.0478]
[1641714074165,0.142258,41851.0,41842.0,0.05976881]
[1641714074364,0.261794,41851.0,41850.0,0.022]
[1641714074562,0.321565,41851.0,41850.0,0.022]
[1641714074762,0.871565,41851.0,41850.0,0.022]
[1641714075562,1.22583259,41851.0,41840.0,0.059772]
[1641714075862,1.22583259,41851.0,41837.0,0.21171617]
[1641714075863,0.059775,41845.0,41837.0,0.21171617]
[1641714076064,0.31449017,41844.0,41836.0,0.00120612]
[1641714076463,0.61058265,41842.0,41837.0,0.057]
[1641714076767,0.61058265,41842.0,41838.0,0.11954824]
[1641714077021,0.61058265,41842.0,41837.0,0.057]
[1641714077622,0.61058265,41842.0,41836.0,0.00120612]
[1641714077822,0.61058265,41842.0,41834.0,0.25796783]
[1641714078423,0.61058265,41842.0,41834.0,0.32396783]
[1641714078624,0.61058265,41842.0,41837.0,0.059775]
[1641714078825,0.61058265,41842.0,41837.0,0.11955]
[1641714079026,0.67035765,41842.0,41837.0,0.1195496]
[1641714079625,0.35013462,41842.0,41834.0,0.32396784]
[1641714079824,0.059775,41842.0,41835.0,0.384555]
[1641714080025,0.059775,41842.0,41837.0,0.11954823]
[1641714080226,0.059775,41842.0,41837.0,0.059774]
[1641714080426,0.072775,41842.0,41837.0,0.059774]
[1641714081565,0.072775,41842.0,41837.0,0.1195485]
[1641714081765,0.072775,41842.0,41837.0,0.0597745]
[1641714082169,0.059775,41842.0,41837.0,0.0597745]
[1641714082366,0.067775,41842.0,41837.0,0.0607745]
[1641714082968,0.067775,41842.0,41838.0,0.059773]
[1641714083170,0.067775,41842.0,41837.0,0.001]
[1641714083370,0.008,41842.0,41838.0,0.00125558]
[1641714083570,0.3117,41849.0,41839.0,0.384555]
[1641714083769,0.142258,41850.0,41838.0,0.00125558]
[1641714083969,0.33191195,41848.0,41838.0,0.33187819]
[1641714084170,0.24454742,41847.0,41841.0,0.119525]
[1641714084414,0.24454742,41847.0,41843.0,0.059762]
[1641714084618,0.24454742,41847.0,41843.0,0.11952363]
[1641714085415,0.24454742,41847.0,41843.0,0.059762]
[1641714085615,0.24454742,41847.0,41844.0,0.059766]
[1641714086015,0.24454742,41847.0,41844.0,0.11953]
[1641714086216,0.24454742,41847.0,41844.0,0.11953054]
[1641714086416,0.26354742,41847.0,41844.0,0.11953054]
[1641714086615,0.32331442,41847.0,41844.0,0.11953054]
[1641714086815,0.32331442,41847.0,41844.0,0.059766]
[1641714087016,0.32331442,41847.0,41842.0,0.059767]
[1641714087417,0.32331442,41847.0,41844.0,0.05976509]
[1641714087617,0.24454742,41847.0,41844.0,0.11952909]
[1641714087817,0.24454742,41847.0,41844.0,0.059764]
[1641714088016,0.24454742,41847.0,41845.0,0.059763]
[1641714088466,0.24454742,41847.0,41841.0,0.05976785]
[1641714088467,0.27954742,41847.0,41841.0,0.05976785]
[1641714088663,0.27954742,41847.0,41839.0,0.24758552]
[1641714088864,0.094768,41847.0,41840.0,0.05977]
[1641714089065,0.035,41847.0,41841.0,0.059769]
[1641714089768,0.4044376,41850.0,41846.0,0.24020227]
[1641714090465,0.4154376,41850.0,41847.0,0.059762]
[1641714091265,0.4154376,41850.0,41847.0,0.119523]
[1641714091466,0.4154376,41850.0,41847.0,0.059762]
[1641714091665,0.4154376,41850.0,41847.0,0.054762]
[1641714091918,0.2731796,41850.0,41847.0,0.054762]
[1641714092321,0.2771796,41850.0,41847.0,0.054762]
[1641714092519,0.2771796,41850.0,41847.0,0.11452215]
[1641714092719,0.2771796,41850.0,41847.0,0.054762]
[1641714093321,0.2771796,41850.0,41842.0,0.23904666]
[1641714093522,0.3369515,41850.0,41838.0,0.00125558]
[1641714093720,0.2621796,41850.0,41838.0,0.00125558]
[1641714093921,0.2621796,41850.0,41835.0,0.3565]
[1641714094119,0.2621796,41850.0,41835.0,0.4565]
[1641714094319,0.29581212,41839.0,41838.0,0.048]
[1641714094520,0.35559112,41839.0,41838.0,0.048]
[1641714096263,0.35559112,41839.0,41834.0,0.00040271]
[1641714096463,0.36559112,41839.0,41838.0,0.025]
[1641714097570,0.35559112,41839.0,41834.0,0.00040477]
[1641714098367,0.36459112,41839.0,41834.0,0.03640477]
[1641714098666,0.36459112,41839.0,41834.0,0.15596055]
[1641714098866,0.36459112,41839.0,41834.0,0.15596057]
[1641714099516,0.36459112,41839.0,41836.0,0.059777]
[1641714099720,0.29581212,41839.0,41836.0,0.11955219]
[1641714100417,0.30781212,41839.0,41836.0,0.11955219]
[1641714101618,0.30781212,41839.0,41837.0,0.059775]
[1641714102219,0.29581212,41839.0,41837.0,0.059775]
[1641714102421,0.012,41839.0,41836.0,0.03706919]
[1641714103021,0.012,41839.0,41836.0,0.09684538]
[1641714103671,0.33603969,41841.0,41837.0,0.059775]
[1641714104472,0.34803969,41841.0,41837.0,0.006]
[1641714104673,0.30039599,41840.0,41837.0,0.006]
[1641714104874,0.059784,41839.0,41837.0,0.006]
[1641714105675,0.059784,41839.0,41836.0,6.0]
[1641714106279,0.059785,41837.0,41836.0,6.0]
[1641714106477,0.36582801,41837.0,41836.0,6.0]
[1641714108423,0.37582801,41837.0,41836.0,6.0]
[1641714109723,0.36582801,41837.0,41836.0,6.0]
[1641714110423,0.37782801,41837.0,41836.0,6.0]
[1641714111669,0.36582801,41837.0,41836.0,6.0]
[1641714112468,0.37682801,41837.0,41836.0,6.0]
[1641714113671,0.36582801,41837.0,41836.0,6.0]
[1641714114530,0.37682801,41837.0,41836.0,6.0]
[1641714115631,0.36582801,41837.0,41836.0,6.0]
[1641714116032,0.059785,41837.0,41836.0,6.0]
[1641714116432,0.071785,41837.0,41836.0,6.0]
[1641714116633,0.012,41837.0,41836.0,6.0]
[1641714116832,0.012,41837.0,41836.0,6.384555]
[1641714117634,0.27626369,41841.0,41836.0,6.384555]
[1641714117834,0.27626369,41841.0,41836.0,6.0]
[1641714118035,0.27626369,41841.0,41838.0,0.059775]
[1641714118475,0.33526369,41841.0,41838.0,0.059775]
[1641714119074,0.39503969,41841.0,41838.0,0.059775]
[1641714119674,0.33603969,41841.0,41838.0,0.059775]
[1641714120476,0.40003969,41841.0,41836.0,6.0]
[1641714121078,0.05978606,41840.0,41836.0,6.0]
[1641714121279,0.059786,41838.0,41836.0,6.0]
[1641714121477,0.49055862,41837.0,41836.0,6.0]
[1641714121678,0.78496156,41837.0,41836.0,6.0]
[1641714121926,0.49055862,41837.0,41836.0,6.0]
[1641714122526,0.50755862,41837.0,41836.0,6.0]
[1641714123728,0.79007168,41837.0,41836.0,6.0]
[1641714124325,0.49055862,41837.0,41836.0,6.0]
[1641714124529,0.50655862,41837.0,41836.0,6.0]
[1641714125329,0.80088211,41837.0,41836.0,6.0]
[1641714125770,0.78488211,41837.0,41836.0,6.0]
[1641714126568,0.79988211,41837.0,41836.0,6.0]
[1641714126969,0.79988211,41837.0,41836.0,4.00203641]
[1641714127771,0.88488211,41837.0,41836.0,4.00203641]
[1641714127971,0.93488211,41837.0,41836.0,4.00203641]
[1641714128569,0.94988211,41837.0,41836.0,4.00203641]
[1641714129821,0.93488211,41837.0,41836.0,4.00203641]
[1641714130221,0.49055862,41837.0,41836.0,4.00203641]
[1641714130623,0.50755862,41837.0,41836.0,4.00203641]
[1641714131023,0.15773425,41837.0,41836.0,4.00203641]
[1641714131820,0.14073425,41837.0,41836.0,4.00203641]
[1641714132521,0.15773425,41837.0,41836.0,4.00203641]
[1641714132721,0.44587722,41837.0,41836.0,4.00203641]
[1641714133774,0.42887722,41837.0,41836.0,4.00203641]
[1641714134572,0.44487722,41837.0,41836.0,4.00203641]
[1641714135773,0.42887722,41837.0,41836.0,4.00203641]
[1641714136175,0.73392272,41837.0,41836.0,4.00203641]
[1641714136474,0.74992272,41837.0,41836.0,4.00203641]
[1641714137832,0.73392272,41837.0,41836.0,4.00203641]
[1641714138434,0.74992272,41837.0,41836.0,4.00203641]
[1641714139435,0.44487722,41837.0,41836.0,4.00203641]
[1641714139734,0.42887722,41837.0,41836.0,4.00203641]
[1641714140536,0.44487722,41837.0,41836.0,4.00203641]
[1641714141869,0.42887722,41837.0,41836.0,4.00203641]
[1641714142469,0.44487722,41837.0,41836.0,4.00203641]
[1641714143771,0.42887722,41837.0,41836.0,4.00203641]
[1641714144617,0.44487722,41837.0,41836.0,4.00203641]
[1641714146420,0.42887722,41837.0,41836.0,4.00203641]
[1641714146620,0.44587722,41837.0,41836.0,4.00203641]
[1641714148574,0.46287722,41837.0,41836.0,4.00203641]
[1641714148973,0.76119235,41837.0,41836.0,4.00203641]
[1641714149776,0.72719235,41837.0,41836.0,4.00203641]
[1641714150177,0.42887722,41837.0,41836.0,4.00203641]
[1641714150576,0.44587722,41837.0,41836.0,4.00203641]
[1641714151782,0.42887722,41837.0,41836.0,4.00203641]
[1641714152518,0.44487722,41837.0,41836.0,4.00203641]
[1641714153821,0.42887722,41837.0,41836.0,4.00203641]
[1641714154521,0.44587722,41837.0,41836.0,4.00203641]
[1641714155778,0.42887722,41837.0,41836.0,4.00203641]
[1641714156581,0.44587722,41837.0,41836.0,4.00203641]
[1641714157684,0.74525135,41837.0,41836.0,4.00203641]
[1641714157881,0.44587722,41837.0,41836.0,4.00203641]
[1641714158083,0.15773425,41837.0,41836.0,4.00203641]
[1641714158683,0.17473425,41837.0,41836.0,4.00203641]
[1641714159286,0.49464294,41837.0,41836.0,4.00203641]
[1641714159924,0.46064294,41837.0,41836.0,4.00203641]
[1641714162727,0.15773425,41837.0,41836.0,4.00203641]
[1641714163972,0.14073425,41837.0,41836.0,4.00203641]
[1641714164572,0.15673425,41837.0,41836.0,4.00203641]
[1641714165877,0.14073425,41837.0,41836.0,4.00203641]
[1641714166674,0.15973425,41837.0,41836.0,4.00203641]
[1641714167820,0.14073425,41837.0,41836.0,4.00203641]
[1641714168622,0.19473425,41837.0,41836.0,4.00203641]
[1641714169825,0.14073425,41837.0,41836.0,4.00203641]
[1641714170672,0.19673425,41837.0,41836.0,4.00203641]
[1641714171871,0.14073425,41837.0,41836.0,4.00203641]
[1641714172573,0.19473425,41837.0,41836.0,4.00203641]
[1641714173772,0.14073425,41837.0,41836.0,4.00203641]
[1641714174523,0.19473425,41837.0,41836.0,4.00203641]
[1641714176025,0.14073425,41837.0,41836.0,4.00203641]
[1641714176722,0.19673425,41837.0,41836.0,4.00203641]
[1641714177924,0.14073425,41837.0,41836.0,4.00203641]
[1641714178679,0.19573425,41837.0,41836.0,4.00203641]
[1641714179971,0.14073425,41837.0,41836.0,4.00203641]
[1641714180571,0.21273425,41837.0,41836.0,4.00203641]
[1641714182024,0.14073425,41837.0,41836.0,4.00203641]
[1641714182724,0.20273425,41837.0,41836.0,4.00203641]
[1641714183927,0.14073425,41837.0,41836.0,4.00203641]
[1641714184625,0.20273425,41837.0,41836.0,4.00203641]
[1641714185778,0.14073425,41837.0,41836.0,4.00203641]
[1641714186581,0.20273425,41837.0,41836.0,4.00203641]
[1641714187879,0.14073425,41837.0,41836.0,4.00203641]
[1641714188680,0.20373425,41837.0,41836.0,4.00203641]
[1641714189828,0.14073425,41837.0,41836.0,4.00203641]
[1641714190127,0.88552475,41837.0,41836.0,4.00203641]
[1641714190728,0.90452475,41837.0,41836.0,4.00203641]
[1641714191329,0.64690425,41837.0,41836.0,4.00203641]
[1641714191930,0.62790425,41837.0,41836.0,4.00203641]
[1641714192731,0.64390425,41837.0,41836.0,4.00203641]
[1641714194077,0.62790425,41837.0,41836.0,4.00203641]
[1641714194479,1.17790425,41837.0,41836.0,4.00203641]
[1641714194677,0.79190425,41837.0,41836.0,4.00203641]
[1641714194878,0.69190425,41837.0,41836.0,4.00203641]
[1641714195279,0.69190425,41837.0,41836.0,3.97296397]
[1641714195879,0.77790425,41837.0,41836.0,3.97296397]
[1641714196081,0.67790425,41837.0,41836.0,3.97296397]
[1641714196683,0.69090425,41837.0,41836.0,3.97296397]
[1641714197129,0.79090425,41837.0,41836.0,3.97296397]
[1641714197829,0.77790425,41837.0,41836.0,3.97296397]
[1641714198631,0.79090425,41837.0,41836.0,3.97296397]
[1641714199434,0.69090425,41837.0,41836.0,3.97296397]
[1641714200033,0.67790425,41837.0,41836.0,3.97296397]
[1641714200674,0.69190425,41837.0,41836.0,3.97296397]
[1641714201979,0.67790425,41837.0,41836.0,3.97296397]
[1641714202675,0.69190425,41837.0,41836.0,3.97296397]
[1641714203878,0.67790425,41837.0,41836.0,3.97296397]
[1641714204529,0.77790425,41837.0,41836.0,3.97296397]
[1641714204728,0.79190425,41837.0,41836.0,3.97296397]
[1641714206526,0.77790425,41837.0,41836.0,3.97296397]
[1641714206728,0.79090425,41837.0,41836.0,3.97296397]
[1641714207628,0.69090425,41837.0,41836.0,3.97296397]
[1641714208027,0.72790425,41837.0,41836.0,3.97296397]
[1641714208674,0.74190425,41837.0,41836.0,3.97296397]
[1641714209880,0.72790425,41837.0,41836.0,3.97296397]
[1641714210678,0.74290425,41837.0,41836.0,3.97296397]
[1641714212025,0.72790425,41837.0,41836.0,3.97296397]
[1641714212430,0.63853425,41837.0,41836.0,3.97296397]
[1641714212827,0.68853425,41837.0,41836.0,3.97296397]
[1641714214033,0.58853425,41837.0,41836.0,3.97296397]
[1641714214632,0.55453425,41837.0,41836.0,3.97296397]
[1641714215704,0.70453425,41837.0,41836.0,3.97296397]
[1641714215900,0.68853425,41837.0,41836.0,3.97296397]
[1641714216804,0.74053425,41837.0,41836.0,3.97296397]
[1641714217705,1.04529103,41837.0,41836.0,3.97296397]
[1641714218103,0.68853425,41837.0,41836.0,3.97296397]
[1641714218504,0.88561843,41837.0,41836.0,3.97296397]
[1641714218705,0.93361843,41837.0,41836.0,3.97296397]
[1641714219525,0.63653425,41837.0,41836.0,3.97296397]
[1641714219725,0.93893267,41837.0,41836.0,3.97296397]
[1641714219927,0.99093267,41837.0,41836.0,3.97296397]
[1641714220127,0.53853425,41837.0,41836.0,3.97296397]
[1641714220729,0.55253425,41837.0,41836.0,3.97296397]
[1641714222129,0.53853425,41837.0,41836.0,3.97296397]
[1641714222730,0.55253425,41837.0,41836.0,3.97296397]
[1641714223981,0.83636973,41837.0,41836.0,3.97296397]
[1641714224582,0.53853425,41837.0,41836.0,3.97296397]
[1641714224783,0.55253425,41837.0,41836.0,3.97296397]
[1641714226086,0.53853425,41837.0,41836.0,3.97296397]
[1641714226686,0.8992093,41837.0,41836.0,3.97296397]
[1641714226926,0.60253425,41837.0,41836.0,3.97296397]
[1641714228027,0.58853425,41837.0,41836.0,3.97296397]
[1641714228732,0.60353425,41837.0,41836.0,3.97296397]
[1641714229628,0.53240825,41837.0,41836.0,3.97296397]
[1641714230676,0.54740825,41837.0,41836.0,3.97296397]
[1641714232077,0.51740825,41837.0,41836.0,3.97296397]
[1641714232678,0.53340825,41837.0,41836.0,3.97296397]
[1641714233977,0.51740825,41837.0,41836.0,3.97296397]
[1641714234829,0.53340825,41837.0,41836.0,3.97296397]
[1641714236027,0.51740825,41837.0,41836.0,3.97296397]
[1641714236826,0.53440825,41837.0,41836.0,3.97296397]
[1641714238277,0.51740825,41837.0,41836.0,3.97296397]
[1641714238683,0.63140825,41837.0,41836.0,3.97296397]
[1641714240180,0.51740825,41837.0,41836.0,3.97296397]
[1641714240382,0.61740825,41837.0,41836.0,3.97296397]
[1641714240581,0.51740825,41837.0,41836.0,3.97296397]
[1641714240781,0.53140825,41837.0,41836.0,3.97296397]
[1641714241930,0.51740825,41837.0,41836.0,3.97296397]
[1641714242332,0.35,41837.0,41836.0,3.97296397]
[1641714242736,0.408,41837.0,41836.0,3.97296397]
[1641714244136,0.35,41837.0,41836.0,3.97296397]
[1641714244736,0.406,41837.0,41836.0,3.97296397]
[1641714246077,0.35,41837.0,41836.0,3.97296397]
[1641714246878,0.403,41837.0,41836.0,3.97296397]
[1641714247981,0.35,41837.0,41836.0,3.97296397]
[1641714248786,0.399,41837.0,41836.0,3.97296397]
[1641714248980,0.699,41837.0,41836.0,3.97296397]
[1641714250127,0.65,41837.0,41836.0,3.97296397]
[1641714250733,0.664,41837.0,41836.0,3.97296397]
[1641714251332,0.364,41837.0,41836.0,3.97296397]
[1641714252733,0.398,41837.0,41836.0,3.97296397]
[1641714252931,0.398,41837.0,41836.0,3.97246397]
[1641714253976,0.35,41837.0,41836.0,3.97246397]
[1641714254876,0.398,41837.0,41836.0,3.97246397]
[1641714256079,0.35,41837.0,41836.0,3.97246397]
[1641714256925,0.401,41837.0,41836.0,3.97246397]
[1641714257927,0.35,41837.0,41836.0,3.97246397]
[1641714258727,0.398,41837.0,41836.0,3.97246397]
[1641714260029,0.35,41837.0,41836.0,3.97246397]
[1641714260889,0.397,41837.0,41836.0,3.97246397]
[1641714261990,0.35,41837.0,41836.0,3.97246397]
[1641714262188,0.37825578,41838.0,41836.0,3.97246397]
[1641714262790,0.42525578,41838.0,41836.0,3.97246397]
[1641714263994,0.37825578,41838.0,41836.0,3.97246397]
[1641714264832,0.42525578,41838.0,41836.0,3.97246397]
[1641714266035,0.52825578,41838.0,41836.0,3.97246397]
[1641714266236,0.6978,41837.0,41836.0,3.97246397]
[1641714266939,0.7088,41837.0,41836.0,3.97246397]
[1641714268048,0.6978,41837.0,41836.0,3.97246397]
[1641714268882,0.7118,41837.0,41836.0,3.97246397]
[1641714270281,0.6978,41837.0,41836.0,3.97246397]
[1641714270880,0.7108,41837.0,41836.0,3.97246397]
[1641714272230,0.6978,41837.0,41836.0,3.97246397]
[1641714272632,0.0478,41837.0,41836.0,3.97246397]
[1641714272834,0.0608,41837.0,41836.0,3.97246397]
[1641714273034,0.013,41837.0,41836.0,3.97246397]
[1641714274136,0.17936137,41838.0,41836.0,3.97246397]
[1641714274939,0.23436137,41838.0,41836.0,3.97246397]
[1641714276085,0.17936137,41838.0,41837.0,0.26488524]
[1641714276486,0.17936137,41838.0,41837.0,0.26119805]
[1641714276685,0.17936137,41838.0,41836.0,3.97246397]
[1641714276886,0.19836137,41838.0,41837.0,0.26127862]
[1641714277089,0.156743,41838.0,41837.0,0.26127862]
[1641714277291,0.096956,41838.0,41837.0,0.26127862]
[1641714278087,0.077956,41838.0,41837.0,0.26127862]
[1641714278489,0.35,41841.0,41837.0,0.57680929]
[1641714278691,0.00292728,41842.0,41837.0,0.57680929]
[1641714278888,0.00292728,41842.0,41841.0,0.0012505]
[1641714279189,0.00641903,41845.0,41841.0,0.3858055]
[1641714279432,0.00641903,41845.0,41844.0,0.00129301]
[1641714279636,0.00641903,41845.0,41844.0,0.38584801]
[1641714280233,0.25435576,41852.0,41844.0,0.38584801]
[1641714280433,0.18711232,41851.0,41844.0,0.00129301]
[1641714280835,0.19353135,41851.0,41844.0,0.29724926]
[1641714281234,0.059768,41848.0,41844.0,0.35701626]
[1641714281435,0.059768,41848.0,41844.0,0.29724926]
[1641714281635,0.059768,41848.0,41844.0,0.00129301]
[1641714281842,0.3069759,41847.0,41837.0,0.00125519]
[1641714282140,0.059786,41841.0,41836.0,3.97246397]
[1641714282334,0.22759579,41840.0,41836.0,3.97246397]
[1641714282535,0.24319924,41839.0,41836.0,3.97246397]
[1641714283034,0.24071828,41839.0,41836.0,3.97246397]
[1641714283287,0.059786,41838.0,41836.0,3.97246397]
[1641714284692,0.119576,41838.0,41836.0,3.97246397]
[1641714284891,0.131576,41838.0,41836.0,3.97246397]
[1641714285490,0.19136706,41838.0,41836.0,3.97246397]
[1641714285890,0.23916706,41838.0,41836.0,3.97246397]
[1641714286090,0.22716706,41838.0,41836.0,3.97246397]
[1641714286290,0.22716706,41838.0,41836.0,2.49797297]
[1641714286490,0.22716706,41838.0,41836.0,2.36076346]
[1641714286491,1.1569759,41837.0,41836.0,2.36076346]
[1641714286691,2.59629384,41837.0,41836.0,1.17622243]
[1641714286942,1.62593617,41836.0,41834.0,0.0004047]
[1641714287140,2.18292331,41835.0,41834.0,0.0004047]
[1641714287343,2.18732884,41835.0,41834.0,0.0004094]
[1641714287540,2.57825294,41835.0,41822.0,1.2157]
[1641714287743,0.35,41826.0,41822.0,0.9202]
[1641714287945,0.059817,41823.0,41817.0,0.283396]
[1641714288144,0.059817,41821.0,41817.0,0.000696]
[1641714288342,0.059816,41819.0,41817.0,0.000696]
[1641714288542,0.0478,41818.0,41817.0,0.000696]
[1641714290143,0.0478,41818.0,41814.0,0.02138568]
[1641714290343,0.059818,41816.0,41814.0,0.02138568]
[1641714290545,0.0478,41815.0,41814.0,0.02138568]
[1641714291188,0.31233847,41815.0,41814.0,0.02138568]
[1641714291588,0.31233847,41815.0,41814.0,0.02178688]
[1641714293090,0.32233847,41815.0,41814.0,0.02178688]
[1641714293691,0.32233847,41815.0,41814.0,0.0217851]
[1641714294091,0.31233847,41815.0,41814.0,0.0217851]
[1641714294941,0.32633847,41815.0,41814.0,0.0217851]
[1641714296144,0.31233847,41815.0,41814.0,0.0217851]
[1641714296745,0.31233847,41815.0,41814.0,0.0167851]
[1641714296945,0.32533847,41815.0,41814.0,0.0167851]
[1641714297547,0.00128535,41812.0,41810.0,0.00022]
[1641714297751,1.47467106,41811.0,41810.0,0.00022]
[1641714298050,0.97467106,41811.0,41810.0,0.00022]
[1641714298887,0.98867106,41811.0,41810.0,0.00022]
[1641714300087,0.97467106,41811.0,41810.0,0.00022]
[1641714300488,0.92467106,41811.0,41810.0,0.00022]
[1641714300890,0.93667106,41811.0,41810.0,0.00022]
[1641714302139,0.92467106,41811.0,41810.0,0.00022]
[1641714302941,0.94267106,41811.0,41810.0,0.00022]
[1641714303339,0.89487106,41811.0,41810.0,0.00022]
[1641714304239,0.87687106,41811.0,41810.0,0.00022]
[1641714304739,0.71707,41811.0,41810.0,0.00022]
[1641714304939,0.73507,41811.0,41810.0,0.00022]
[1641714306187,0.71707,41811.0,41810.0,0.00022]
[1641714306992,0.73407,41811.0,41810.0,0.00022]
[1641714308291,0.71707,41811.0,41810.0,0.00022]
[1641714308889,0.73407,41811.0,41810.0,0.00022]
[1641714309290,0.73541331,41811.0,41810.0,0.00022]
[1641714309534,0.73675662,41811.0,41810.0,0.00022]
[1641714310134,0.71975662,41811.0,41810.0,0.00022]
[1641714310935,0.71975662,41811.0,41810.0,0.00222]
[1641714310936,0.76575662,41811.0,41810.0,0.00222]
[1641714312135,0.71975662,41811.0,41810.0,0.00022]
[1641714313037,0.77575662,41811.0,41810.0,0.00022]
[1641714314200,0.71975662,41811.0,41810.0,0.00022]
[1641714314992,0.76775662,41811.0,41810.0,0.00322]
[1641714316295,0.71975662,41811.0,41810.0,0.00022]
[1641714316493,0.71975662,41811.0,41810.0,0.384775]
[1641714316944,0.73975662,41811.0,41810.0,0.6626266]
[1641714317344,0.73975662,41811.0,41810.0,1.03318354]
[1641714317545,0.73975662,41811.0,41810.0,1.29265255]
[1641714317747,0.01638568,41814.0,41810.0,1.54265254]
[1641714317948,0.01638568,41814.0,41813.0,0.48455499]
[1641714318147,0.01638568,41814.0,41813.0,1.12975969]
[1641714318348,0.01638568,41814.0,41813.0,1.36718896]
[1641714319050,0.01638568,41814.0,41813.0,0.7949597]
[1641714320351,0.01638568,41814.0,41813.0,0.7819597]
[1641714320987,0.01638568,41814.0,41813.0,0.7899597]
[1641714322188,0.01638568,41814.0,41813.0,0.7819597]
[1641714322986,0.01638568,41814.0,41813.0,0.7869597]
[1641714324288,0.01638568,41814.0,41813.0,0.7819597]
[1641714324738,0.01638568,41814.0,41813.0,0.8819597]
[1641714324940,0.01638568,41814.0,41813.0,0.8929597]
[1641714325740,0.00418568,41814.0,41813.0,0.8929597]
[1641714326139,0.00641903,41820.0,41817.0,0.45687352]
[1641714326341,0.00641903,41820.0,41818.0,0.67832101]